fUSD/lending_fUSD_20241006
["ID","MTS","AMOUNT","RATE_DAILY","PERIOD"]
[339961710,1728228650104,-151.0,0.0002,2]
[339961711,1728228650113,-188.129284,0.0002,2]
[339961712,1728228650123,-188.129284,0.0002,2]
[339961713,1728228650131,-151.0,0.0002,2]
[339961714,1728228650141,-290.989539,0.0002,2]
[339961715,1728228650150,-151.680141,0.0002,2]
[339961716,1728228650160,-164.371948,0.0002,2]
[339961717,1728228650169,-164.371948,0.0002,2]
[339961718,1728228650178,-151.0,0.0002,2]
[339961719,1728228650188,-151.0,0.0002,2]
[339961720,1728228650198,-292.675511,0.0002,2]
[339961721,1728228650207,-211.509741,0.0002,2]
[339961722,1728228650217,-211.509741,0.0002,2]
[339961723,1728228650226,-151.0,0.0002,2]
[339961724,1728228650237,-151.0,0.0002,2]
[339961725,1728228650246,-3000.0,0.0002,2]
[339961726,1728228650256,-226.67763,0.0002,2]
[339961727,1728228650267,-226.67763,0.0002,2]
[339961728,1728228650276,-152.06849,0.0002,2]
[339961729,1728228650287,-375.436396,0.0002,2]
[339961730,1728228650298,-375.436396,0.0002,2]
[339961731,1728228650309,-179.482618,0.0002,2]
[339961732,1728228650319,-151.0,0.0002,2]
[339961733,1728228650328,-179.482618,0.0002,2]
[339961734,1728228650339,-151.0,0.0002,2]
[339961735,1728228650349,-365.440848,0.0002,2]
[339961736,1728228650358,-365.440848,0.0002,2]
[339961737,1728228650368,-152.574833,0.0002,2]
[339961738,1728228650377,-2116.143409,0.0002,2]
[339961739,1728228650386,-151.0,0.0002,2]
[339961740,1728228650396,-151.0,0.0002,2]
[339961741,1728228650405,-186.848951,0.0002,2]
[339961742,1728228650414,-160.582417,0.0002,2]
[339961743,1728228650424,-186.848951,0.0002,2]
[339961744,1728228650434,-160.582417,0.0002,2]
[339961745,1728228650443,-704.335054,0.0002,2]
[339961746,1728228650453,-704.335054,0.0002,2]
[339961747,1728228650466,-595.931585,0.0002,2]
[339961748,1728228650476,-151.0,0.0002,2]
[339961749,1728228650485,-649.025701,0.0002,2]
[339961750,1728228650494,-649.025701,0.0002,2]
[339961751,1728228650505,-151.0,0.0002,2]
[339961752,1728228650515,-151.0,0.0002,2]
[339961753,1728228650524,-221.352443,0.0002,2]
[339961754,1728228650536,-221.352443,0.0002,2]
[339961755,1728228650546,-2000.0,0.0002,2]
[339961756,1728228650555,-223.0,0.0002,2]
[339961757,1728228650565,-247.772114,0.0002,2]
[339961758,1728228650574,-247.772114,0.0002,2]
[339961759,1728228650584,-454.434374,0.0002,2]
[339961760,1728228650593,-705.853461,0.0002,2]
[339961761,1728228650603,-454.434374,0.0002,2]
[339961762,1728228650612,-705.853461,0.0002,2]
[339961763,1728228650621,-213.757011,0.0002,2]
[339961764,1728228650631,-255.809941,0.0002,2]
[339961765,1728228650641,-151.0,0.0002,2]
[339961766,1728228650651,-151.0,0.0002,2]
[339961767,1728228650660,-205.918564,0.0002,2]
[339961768,1728228650670,-205.918564,0.0002,2]
[339961769,1728228650679,-151.0,0.0002,2]
[339961770,1728228650688,-175.892926,0.0002,2]
[339961771,1728228650697,-175.892926,0.0002,2]
[339961772,1728228650706,-387.976356,0.0002,2]
[339961773,1728228650716,-387.976356,0.0002,2]
[339961774,1728228650725,-151.0,0.0002,2]
[339961775,1728228650734,-151.0,0.0002,2]
[339961776,1728228650744,-1395.003121,0.0002,2]
[339961777,1728228650753,-1395.003121,0.0002,2]
[339961778,1728228650762,-316.474118,0.0002,2]
[339961779,1728228650771,-316.474118,0.0002,2]
[339961780,1728228650781,-151.0,0.0002,2]
[339961781,1728228650790,-154.189539,0.0002,2]
[339961782,1728228650799,-288.865117,0.0002,2]
[339961783,1728228650809,-154.189539,0.0002,2]
[339961784,1728228650818,-2000.0,0.0002001,2]
[339961785,1728228650827,-3767.859447,0.0002002,2]
[339961786,1728228650836,-500.11393065,0.000201,2]
[339961787,1728228650846,-354.24425357,0.00020152,2]
[339961788,1728228650855,-178.13554289,0.00020152,2]
[339961789,1728228650865,-150.0,0.00020172,2]
[339961790,1728228650874,-418.79,0.00020427,2]
[339961791,1728228650883,-354.24425357,0.00020455,2]
[339961792,1728228650893,-178.13554289,0.00020455,2]
[339961793,1728228650903,-150.0,0.00020455,2]
[339961794,1728228650912,-150.0,0.00020517,2]
[339961795,1728228650921,-174.37,0.00020548,2]
[339961796,1728228650930,-354.24425357,0.00020758,2]
[339961797,1728228650940,-178.13554289,0.00020758,2]
[339961798,1728228650949,-150.0,0.00020769,2]
[339961799,1728228650958,-150.0,0.00020862,2]
[339961800,1728228650968,-177.990515,0.00020885,2]
[339961801,1728228650978,-500.0,0.00021,2]
[339961802,1728228650987,-500.0,0.00021028,2]
[339961803,1728228650997,-354.24425357,0.00021061,2]
[339961804,1728228651007,-178.13554289,0.00021061,2]
[339961805,1728228651018,-150.0,0.00021207,2]
[339961806,1728228651028,-1011.36,0.0002132,2]
[339961807,1728228651038,-354.24425357,0.00021364,2]
[339961808,1728228651049,-178.13554289,0.00021364,2]
[339961809,1728228651059,-248.78,0.0002137,2]
[339961810,1728228651069,-150.0,0.00021552,2]
[339961811,1728228651079,-354.24425357,0.00021667,2]
[339961812,1728228651088,-178.13554289,0.00021667,2]
[339961813,1728228651097,-150.0,0.00021897,2]
[339961814,1728228651106,-250.0,0.00021917,2]
[339961815,1728228651115,-1035.94,0.00021918,2]
[339961816,1728228651124,-175.46,0.00021918,2]
[339961817,1728228651134,-150.0,0.00021923,2]
[339961818,1728228651143,-177.990515,0.00021929,2]
[339961819,1728228651152,-354.24425357,0.0002197,2]
[339961820,1728228651162,-178.13554289,0.0002197,2]
[339961821,1728228651171,-200.0,0.00022,5]
[339961822,1728228651180,-3332.26175502,0.00022,2]
[339961823,1728228651189,-501.22513562,0.00022,2]
[339961824,1728228651198,-2000.0,0.00022,2]
[339961825,1728228651207,-200.0,0.00022,2]
[339961826,1728228651216,-2000.0,0.00022,2]
[339961827,1728228651226,-200.0,0.00022,2]
[339961828,1728228651235,-2000.0,0.00022,2]
[339961829,1728228651245,-200.0,0.00022,2]
[339961830,1728228651254,-277.65304932,0.00022,2]
[339961831,1728228651263,-200.0,0.00022,2]
[339961832,1728228651273,-1648.01,0.00022137,30]
[339961833,1728228651282,-185.2548462,0.00022182,2]
[339961834,1728228651291,-2000.0,0.0002222,2]
[339961835,1728228651301,-200.0,0.0002222,2]
[339961836,1728228651310,-2000.0,0.0002222,2]
[339961837,1728228651319,-200.0,0.0002222,2]
[339961838,1728228651329,-2000.0,0.0002222,2]
[339961839,1728228651338,-200.0,0.0002222,2]
[339961840,1728228651347,-200.0,0.0002222,2]
[339961841,1728228651357,-150.0,0.00022241,2]
[339961842,1728228651366,-354.24425357,0.00022273,2]
[339961843,1728228651375,-178.13554289,0.00022273,2]
[339961844,1728228651384,-500.0,0.0002231,30]
[339961845,1728228651394,-161.57,0.00022416,2]
[339961846,1728228651403,-2000.0,0.00022442,2]
[339961847,1728228651412,-200.0,0.00022442,2]
[339961848,1728228651422,-2000.0,0.00022442,2]
[339961849,1728228651431,-200.0,0.00022442,2]
[339961850,1728228651440,-2000.0,0.00022442,2]
[339961851,1728228651451,-200.0,0.00022442,2]
[339961852,1728228651463,-200.0,0.00022442,2]
[339961853,1728228651474,-1000.0,0.00022466,2]
[339961854,1728228651487,-150.0,0.000225,2]
[339961855,1728228651496,-354.24425357,0.00022576,4]
[339961856,1728228651506,-178.13554289,0.00022576,4]
[339961857,1728228651515,-150.0,0.00022586,4]
[339961858,1728228651525,-500.0,0.00022645,30]
[339961859,1728228651536,-2000.0,0.00022667,2]
[339961860,1728228651545,-200.0,0.00022667,2]
[339961861,1728228651554,-2000.0,0.00022667,2]
[339961862,1728228651563,-200.0,0.00022667,2]
[339961863,1728228651572,-2000.0,0.00022667,2]
[339961864,1728228651581,-200.0,0.00022667,2]
[339961865,1728228651590,-200.0,0.00022667,2]
[339961866,1728228651599,-358.98992921,0.00022691,2]
[339961867,1728228651805,-59.80007079,0.00022691,2]
[339961868,1728228651814,-1346.90643513,0.000227,2]
[339961869,1728228651825,-740.11580003,0.000227,2]
[339961870,1728228651842,-912.97776484,0.000227,2]
[339961871,1728228651852,-354.24425357,0.00022879,4]
[339961872,1728228651861,-178.13554289,0.00022879,4]
[339961873,1728228651870,-200.0,0.00022893,2]
[339961874,1728228651879,-311.4124387,0.00022893,2]
[339961875,1728228651891,-941.133634,0.00022893,2]
[339961876,1728228651908,-747.4539273,0.00022893,2]
[339961877,1728228651917,-200.0,0.00022893,2]
[339961878,1728228651926,-1548.13321586,0.00022893,2]
[339961879,1728228652158,-3.59009601,0.00022893,2]
[339961880,1728228652176,-288.865117,0.00016116,2]
[339961881,1728228652185,-448.27668813,0.00022893,2]
[339961882,1728228652195,-200.0,0.00022893,2]
[339961883,1728228652204,-200.0,0.00022893,2]
[339961884,1728228652214,-416.9,0.000229,14]
[339961885,1728228652224,-150.0,0.00022931,4]
[339961886,1728228652234,-224.74795268,0.00022984,30]
[339961887,1728228652256,-275.25204732,0.00022984,30]
[339961888,1728228652265,-98.28966421,0.00023,7]
[339961889,1728228652276,-135.14466279,0.00023,7]
[339961890,1728228652286,-233.434327,0.00023,7]
[339961891,1728228652295,-151.0,0.00023,7]
[339961892,1728228652305,-103.51749583,0.00023,7]
[339961893,1728228652460,-256.158,0.00012152,2]
[339961894,1728228652471,-256.158,0.00012152,2]
[339961895,1728228652482,-256.158,0.00012152,2]
[339961896,1728228652492,-256.158,0.00012152,2]
[339961897,1728228652502,-256.158,0.00012152,2]
[339961898,1728228652511,-151.392553,0.00012329,2]
[339961899,1728228652521,-150.0,0.00018169,2]
[339961900,1728228652531,-150.0,0.00018601,2]
[339961901,1728228652542,-150.0,0.00019034,2]
[339961902,1728228652551,-150.0,0.00019466,2]
[339961903,1728228652561,-150.0,0.00019899,2]
[339961904,1728228652571,-288.865117,0.0002,2]
[339961905,1728228652581,-150.0,0.00020332,2]
[339961906,1728228652591,-150.0,0.00020764,2]
[339961907,1728228652600,-52.92119717,0.00023,7]
[339961908,1728228652610,-332.588415,0.00023,7]
[339961909,1728228652620,-332.588415,0.00023,7]
[339961910,1728228652630,-151.0,0.00023,7]
[339961911,1728228652641,-151.0,0.00023,7]
[339961912,1728228652651,-188.129284,0.00023,7]
[339961913,1728228652660,-188.129284,0.00023,7]
[339961914,1728228652669,-151.0,0.00023,7]
[339961915,1728228652679,-164.371948,0.00023,7]
[339961916,1728228652688,-164.371948,0.00023,7]
[339961917,1728228652697,-151.0,0.00023,7]
[339961918,1728228652707,-151.0,0.00023,7]
[339961919,1728228652716,-211.509741,0.00023,7]
[339961920,1728228652726,-211.509741,0.00023,7]
[339961921,1728228652736,-151.0,0.00023,7]
[339961922,1728228652745,-151.0,0.00023,7]
[339961923,1728228652755,-226.67763,0.00023,7]
[339961924,1728228652764,-226.67763,0.00023,7]
[339961925,1728228652774,-375.436396,0.00023,7]
[339961926,1728228652783,-375.436396,0.00023,7]
[339961927,1728228652792,-179.482618,0.00023,7]
[339961928,1728228652802,-151.0,0.00023,7]
[339961929,1728228652811,-179.482618,0.00023,7]
[339961930,1728228652820,-270.54646,0.00023,7]
[339961931,1728228652830,-365.440848,0.00023,7]
[339961932,1728228652839,-365.440848,0.00023,7]
[339961933,1728228652848,-2116.143409,0.00023,7]
[339961934,1728228652858,-151.0,0.00023,7]
[339961935,1728228652869,-151.0,0.00023,7]
[339961936,1728228652878,-186.848951,0.00023,7]
[339961937,1728228652888,-160.582417,0.00023,7]
[339961938,1728228652897,-186.848951,0.00023,7]
[339961939,1728228652906,-160.582417,0.00023,7]
[339961940,1728228652915,-704.335054,0.00023,7]
[339961941,1728228652924,-704.335054,0.00023,7]
[339961942,1728228652934,-316.0,0.00023,2]
[339961943,1728228652945,-151.0,0.00023,7]
[339961944,1728228652954,-649.025701,0.00023,7]
[339961945,1728228652964,-649.025701,0.00023,7]
[339961946,1728228652974,-151.0,0.00023,7]
[339961947,1728228652983,-151.0,0.00023,7]
[339961948,1728228652992,-221.352443,0.00023,7]
[339961949,1728228653002,-221.352443,0.00023,7]
[339961950,1728228653011,-247.772114,0.00023,7]
[339961951,1728228653021,-247.772114,0.00023,7]
[339961952,1728228653030,-454.434374,0.00023,7]
[339961953,1728228653039,-705.853461,0.00023,7]
[339961954,1728228653048,-454.434374,0.00023,7]
[339961955,1728228653057,-705.853461,0.00023,7]
[339961956,1728228653067,-151.0,0.00023,7]
[339961957,1728228653076,-151.0,0.00023,7]
[339961958,1728228653085,-205.918564,0.00023,7]
[339961959,1728228653095,-205.918564,0.00023,7]
[339961960,1728228653104,-151.0,0.00023,7]
[339961961,1728228653113,-1873.0,0.00023,120]
[339961962,1728228653123,-1873.0,0.00023,120]
[339961963,1728228653133,-1873.0,0.00023,120]
[339961964,1728228653142,-1873.0,0.00023,120]
[339961965,1728228653151,-1873.0,0.00023,120]
[339961966,1728228653161,-1873.0,0.00023,120]
[339961967,1728228653171,-1873.0,0.00023,120]
[339961968,1728228653259,-1873.0,0.00023,120]
[339961969,1728228653271,-1873.0,0.00023,120]
[339961970,1728228653281,-1873.0,0.00023,120]
[339961971,1728228653290,-1873.0,0.00023,120]
[339961972,1728228653300,-1873.0,0.00023,120]
[339961973,1728228653309,-1873.0,0.00023,120]
[339961974,1728228653319,-1873.0,0.00023,120]
[339961975,1728228653328,-1873.0,0.00023,120]
[339961976,1728228653338,-1873.0,0.00023,120]
[339961977,1728228653348,-1873.0,0.00023,120]
[339961978,1728228653358,-1873.0,0.00023,120]
[339961979,1728228653368,-1873.0,0.00023,120]
[339961980,1728228653378,-1873.0,0.00023,120]
[339961981,1728228653388,-1873.0,0.00023,120]
[339961982,1728228653397,-1873.0,0.00023,120]
[339961983,1728228653407,-175.892926,0.00023,7]
[339961984,1728228653416,-1873.0,0.00023,120]
[339961985,1728228653426,-1884.25724253,0.00023,120]
[339961986,1728228653435,-150.0,0.00023,120]
[339961987,1728228653445,-200.84487712,0.00023,120]
[339961988,1728228653456,-500.0,0.00023,120]
[339961989,1728228653467,-500.0,0.00023,120]
[339961990,1728228653477,-500.0,0.00023,120]
[339961991,1728228653487,-500.0,0.00023,120]
[339961992,1728228653496,-500.0,0.00023,120]
[339961993,1728228653507,-751.84208401,0.00023,120]
[339961994,1728228653517,-175.892926,0.00023,7]
[339961995,1728228653526,-1536.0,0.00023,120]
[339961996,1728228653536,-1536.0,0.00023,120]
[339961997,1728228653546,-1536.0,0.00023,120]
[339961998,1728228653556,-1536.0,0.00023,120]
[339961999,1728228653566,-1536.0,0.00023,120]
[339962000,1728228653575,-1536.0,0.00023,120]
[339962001,1728228653585,-1536.0,0.00023,120]
[339962002,1728228653595,-1536.0,0.00023,120]
[339962003,1728228653604,-1536.0,0.00023,120]
[339962004,1728228653613,-1536.0,0.00023,120]
[339962005,1728228653622,-1536.0,0.00023,120]
[339962006,1728228653631,-1536.0,0.00023,120]
[339962007,1728228653640,-1536.0,0.00023,120]
[339962008,1728228653650,-1536.0,0.00023,120]
[339962009,1728228653659,-1536.0,0.00023,120]
[339962010,1728228653668,-1536.0,0.00023,120]
[339962011,1728228653677,-1536.0,0.00023,120]
[339962012,1728228653687,-1536.0,0.00023,120]
[339962013,1728228653697,-1536.0,0.00023,120]
[339962014,1728228653706,-1536.0,0.00023,120]
[339962015,1728228653715,-1536.0,0.00023,120]
[339962016,1728228653725,-1536.0,0.00023,120]
[339962017,1728228653735,-1536.0,0.00023,120]
[339962018,1728228653744,-1539.0,0.00023,120]
[339962019,1728228653754,-150.0,0.00023,120]
[339962020,1728228653763,-259.84280945,0.00023,120]
[339962021,1728228653772,-387.976356,0.00023,7]
[339962022,1728228653781,-387.976356,0.00023,7]
[339962023,1728228653790,-151.0,0.00023,7]
[339962024,1728228653799,-258.706864,0.00023,7]
[339962025,1728228653808,-1395.003121,0.00023,7]
[339962026,1728228653818,-1395.003121,0.00023,7]
[339962027,1728228653827,-316.474118,0.00023,7]
[339962028,1728228653836,-316.474118,0.00023,7]
[339962029,1728228653846,-151.0,0.00023,7]
[339962030,1728228653856,-550.0,0.00023,2]
[339962031,1728228653865,-154.189539,0.00023,7]
[339962032,1728228653875,-288.865117,0.00023,7]
[339962033,1728228653885,-154.189539,0.00023,7]
[339962034,1728228653894,-288.865117,0.00023,7]
[339962035,1728228653903,-1011.36,0.0002304,2]
[339962036,1728228653912,-150.0,0.00023077,4]
[339962037,1728228653921,-354.24425357,0.00023182,4]
[339962038,1728228653931,-178.13554289,0.00023182,4]
[339962039,1728228653940,-150.0,0.00023182,4]
[339962040,1728228653950,-500.0,0.0002322,2]
[339962041,1728228653960,-150.0,0.00023276,4]
[339962042,1728228653969,-1000.0,0.00023288,120]
[339962043,1728228653979,-2033.502954,0.00023288,7]
[339962044,1728228653988,-2033.502954,0.00023288,7]
[339962045,1728228654000,-500.0,0.00023329,30]
[339962046,1728228654019,-354.24425357,0.00023485,4]
[339962047,1728228654034,-178.13554289,0.00023485,4]
[339962048,1728228654048,-150.0,0.00023621,4]
[339962049,1728228654063,-480.64990088,0.00023679,30]
[339962050,1728228654078,-354.24425357,0.00023788,4]
[339962051,1728228654093,-178.13554289,0.00023788,4]
[339962052,1728228654108,-185.2548462,0.00023906,2]
[339962053,1728228654123,-34250.14361803,0.00023922,2]
[339962054,1728228654163,-256.158,0.00012152,2]
[339962055,1728228654177,-150.0,0.00021197,2]
[339962056,1728228654190,-9593.842,0.00023922,2]
[339962057,1728228654401,-307.11088026,0.000108,2]
[339962058,1728228654413,-256.158,0.00012152,2]
[339962059,1728228654425,-256.158,0.00012152,2]
[339962060,1728228654437,-256.158,0.00012152,2]
[339962061,1728228654449,-256.158,0.00012152,2]
[339962062,1728228654465,-119.60082346,0.00021629,2]
[339962063,1728228654484,-30.39917654,0.00021629,2]
[339962064,1728228654496,-150.0,0.00022062,2]
[339962065,1728228654508,-150.0,0.00022494,2]
[339962066,1728228654519,-150.0,0.00022927,2]
[339962067,1728228654532,-150.0,0.0002336,2]
[339962068,1728228654545,-150.0,0.00023792,2]
[339962069,1728228654557,-670.22116505,0.00023922,2]
[339962070,1728228654572,-313.96731141,0.00023922,2]
[339962071,1728228654587,-20080.0,0.00023922,2]
[339962072,1728228798775,199.0,0.0002199,120]
[339962074,1728229054295,1000.0,0.00021,90]
[339962075,1728229057782,1000.0,0.00021,90]
[339962076,1728229060312,1000.0,0.00021,90]
[339962077,1728229063007,1000.0,0.00021,90]
[339962078,1728229065105,1000.0,0.00021,90]
[339962079,1728229070036,1000.0,0.00021,90]
[339962080,1728229107408,1000.0,0.00021,90]
[339962081,1728229127893,1000.0,0.00021,90]
[339962150,1728229840296,-163.06,0.00010959,2]
[339962151,1728229840306,-150.0,0.00011,2]
[339962152,1728229840316,-250.0,0.00011,2]
[339962153,1728229840325,-1004.38,0.00011,2]
[339962154,1728229840336,-1004.38,0.0001264,2]
[339962155,1728229840346,-300.0,0.00013,2]
[339962156,1728229840355,-186.58,0.00013699,2]
[339962157,1728229840366,-1004.38,0.0001428,2]
[339962158,1728229840375,-499.99,0.0001428,2]
[339962159,1728229840384,-167.0,0.0001474,2]
[339962160,1728229840393,-300.0,0.00014999,2]
[339962161,1728229840403,-350.0,0.00015,2]
[339962162,1728229840413,-774.0,0.00015,2]
[339962163,1728229840422,-167.0,0.00015227,2]
[339962164,1728229840434,-167.0,0.00015713,2]
[339962165,1728229840444,-1004.38,0.0001592,2]
[339962166,1728229840454,-167.0,0.000162,2]
[339962167,1728229840463,-420.0,0.00016416,2]
[339962169,1728229840472,-167.0,0.00016686,2]
[339962171,1728229840484,-400.0,0.00017,2]
[339962173,1728229840494,-167.0,0.00017173,2]
[339962175,1728229840503,-272.21,0.00017406,2]
[339962177,1728229840513,-1004.38,0.0001756,2]
[339962179,1728229840522,-175.1,0.000179,7]
[339962181,1728229840532,-587.0,0.00017966,2]
[339962183,1728229840541,-161.817,0.00018163,2]
[339962185,1728229840551,-450.0,0.00019,2]
[339962187,1728229840561,-250.0,0.0001904,2]
[339962189,1728229840570,-1004.38,0.000192,2]
[339962191,1728229840579,-250.0,0.00019221,2]
[339962192,1728229840589,-150.0,0.00019424,2]
[339962194,1728229840598,-1000.0,0.00019448,2]
[339962196,1728229840608,-2751.0,0.00019453,2]
[339962198,1728229840617,-823.0,0.00019663,2]
[339962200,1728229840627,-272.21,0.0001967,2]
[339962202,1728229840637,-200.0,0.00019717,2]
[339962204,1728229840646,-500.0,0.00019741,2]
[339962206,1728229840656,-2000.0,0.0001989,2]
[339962208,1728229840666,-150.0,0.00019943,2]
[339962210,1728229840677,-3000.0,0.0002,2]
[339962211,1728229840691,-150.0,0.0002,2]
[339962213,1728229840700,-500.0,0.00020086,2]
[339962215,1728229840710,-186.58,0.00020091,2]
[339962216,1728229840719,-150.0,0.00020461,2]
[339962217,1728229840729,-411.86573771,0.0002062,2]
[339962218,1728229840739,-1004.38,0.0002084,2]
[339962219,1728229840748,-411.86573771,0.00020941,2]
[339962220,1728229840759,-150.0,0.0002098,2]
[339962221,1728229840769,-500.0,0.00021,2]
[339962222,1728229840778,-300.0,0.00021077,2]
[339962223,1728229840911,-180.0,0.00021143,2]
[339962224,1728229840921,-411.86573771,0.00021162,2]
[339962225,1728229840934,-411.86573771,0.00021455,2]
[339962226,1728229840943,-150.0,0.00021499,2]
[339962227,1728229840953,-1152.0,0.0002152,2]
[339962228,1728229840963,-411.86573771,0.00021842,2]
[339962229,1728229840976,-1000.0,0.00021879,2]
[339962230,1728229840986,-250.0,0.00021917,2]
[339962231,1728229840996,-863.28,0.00021918,2]
[339962232,1728229841005,-175.46,0.00021918,2]
[339962233,1728229841017,-272.21,0.00021934,2]
[339962234,1728229841026,-150.0,0.00022018,2]
[339962235,1728229841036,-411.86573771,0.0002204,2]
[339962236,1728229841047,-1565.6,0.00022137,30]
[339962237,1728229841056,-500.0,0.00022278,2]
[339962238,1728229841066,-411.86573771,0.00022358,2]
[339962239,1728229841075,-300.0,0.00022447,2]
[339962240,1728229841084,-1000.0,0.00022466,2]
[339962241,1728229841094,-1004.38,0.0002248,2]
[339962242,1728229841103,-150.0,0.00022537,2]
[339962243,1728229841113,-411.86573771,0.00022584,2]
[339962244,1728229841122,-3000.0,0.000227,2]
[339962245,1728229841131,-411.86573771,0.00022798,2]
[339962246,1728229841140,-258.56,0.000229,14]
[339962247,1728229841149,-550.0,0.00023,2]
[339962248,1728229841159,-318.7,0.00023,2]
[339962249,1728229841168,-150.0,0.00023056,2]
[339962250,1728229841178,-411.86573771,0.00023209,2]
[339962251,1728229841189,-411.86573771,0.00023325,2]
[339962252,1728229841198,-1041.49297063,0.00023444,2]
[339962253,1728229841208,-1613.0,0.00023552,2]
[339962254,1728229841218,-150.0,0.00023575,2]
[339962255,1728229841227,-411.86573776,0.00023679,2]
[339962256,1728229841236,-169.19425342,0.00023821,4]
[339962257,1728229841248,-5883.59329246,0.00023822,2]
[339962258,1728229841258,-203.18086969,0.00023822,2]
[339962259,1728229841268,-16407.503949,0.00023912,3]
[339962260,1728229841278,-500.0,0.00023921,2]
[339962261,1728229841288,-233.44521933,0.00023921,2]
[339962262,1728229841297,-247.9709775,0.00023922,4]
[339962263,1728229841307,-150.0,0.00023922,2]
[339962264,1728229841316,-150.0,0.00023922,2]
[339962265,1728229841325,-150.0,0.00023922,2]
[339962266,1728229841335,-150.0,0.00023922,2]
[339962267,1728229841344,-150.0,0.00023922,2]
[339962268,1728229841354,-270395.82590551,0.00023922,2]
[339962269,1728229841363,-200.0,0.00023922,2]
[339962270,1728229841372,-200.0,0.00023922,2]
[339962271,1728229841382,-200.0,0.00023922,2]
[339962272,1728229841391,-318.7,0.00023935,2]
[339962273,1728229841401,-49222.5118469,0.00024081,3]
[339962274,1728229841410,-500.0,0.00024091,2]
[339962275,1728229841420,-500.0,0.00024091,2]
[339962276,1728229841429,-500.0,0.00024091,2]
[339962277,1728229841441,-500.0,0.00024091,2]
[339962278,1728229841451,-500.0,0.00024091,2]
[339962279,1728229841460,-500.0,0.00024091,2]
[339962280,1728229841469,-500.0,0.00024091,2]
[339962281,1728229841478,-500.0,0.00024091,2]
[339962282,1728229841488,-500.0,0.00024091,2]
[339962283,1728229841497,-500.0,0.00024091,2]
[339962284,1728229841506,-500.0,0.00024091,2]
[339962285,1728229841516,-500.0,0.00024091,2]
[339962286,1728229841526,-500.0,0.00024091,2]
[339962287,1728229841535,-500.0,0.00024091,2]
[339962288,1728229841560,-500.0,0.00024091,2]
[339962289,1728229841569,-500.0,0.00024091,2]
[339962290,1728229841579,-500.0,0.00024091,2]
[339962291,1728229841589,-500.0,0.00024091,2]
[339962292,1728229841598,-500.0,0.00024091,2]
[339962293,1728229841607,-500.0,0.00024091,2]
[339962294,1728229841617,-500.0,0.00024091,2]
[339962295,1728229841626,-500.0,0.00024091,2]
[339962296,1728229841636,-500.0,0.00024091,2]
[339962297,1728229841645,-500.0,0.00024091,2]
[339962298,1728229841655,-500.0,0.00024091,2]
[339962299,1728229841665,-500.0,0.00024091,2]
[339962300,1728229841675,-500.0,0.00024091,2]
[339962301,1728229841688,-500.0,0.00024091,2]